[Event "Titled Tuesday Blitz August 15 Late 2023"]
[White "ExchangeAB"]
[Black "tomobeast"]
[WhiteElo "2406"]
[BlackElo "2224"]
[Result "1-0"]
[Round "9"]
[TimeControl "180+1"]
[Date "2023.08.15"]
[WhiteClock "0:00:40"]
[BlackClock "0:02:22"]
[Board "102"]

1. d4 {[%clk 0:03:00]}  d5 {[%clk 0:02:56]} 2. Nc3 {[%clk 0:03:00]}  e6 {[%clk 0:02:57]} 3. Bf4 {[%clk 0:03:01]}  a6 {[%clk 0:02:57]} 4. e3 {[%clk 0:03:01]}  c5 {[%clk 0:02:57]} 5. Nf3 {[%clk 0:02:58]}  Nc6 {[%clk 0:02:57]} 6. Bd3 {[%clk 0:02:50]}  Nf6 {[%clk 0:02:54]} 7. dxc5 {[%clk 0:02:44]}  Bxc5 {[%clk 0:02:54]} 8. e4 {[%clk 0:02:45]}  dxe4 {[%clk 0:02:52]} 9. Nxe4 {[%clk 0:02:45]}  Nxe4 {[%clk 0:02:50]} 10. Bxe4 {[%clk 0:02:46]}  Qxd1+ {[%clk 0:02:48]} 11. Rxd1 {[%clk 0:02:46]}  Bd7 {[%clk 0:02:49]} 12. O-O {[%clk 0:02:40]}  f6 {[%clk 0:02:49]} 13. Bd6 {[%clk 0:02:36]}  Bxd6 {[%clk 0:02:48]} 14. Rxd6 {[%clk 0:02:37]}  O-O-O {[%clk 0:02:48]} 15. Bxc6 {[%clk 0:02:23]}  bxc6 {[%clk 0:02:47]} 16. Rfd1 {[%clk 0:02:17]}  Kc7 {[%clk 0:02:47]} 17. Kf1 {[%clk 0:02:13]}  e5 {[%clk 0:02:46]} 18. Ke2 {[%clk 0:02:06]}  Bg4 {[%clk 0:02:46]} 19. Rxd8 {[%clk 0:02:06]}  Rxd8 {[%clk 0:02:47]} 20. Rxd8 {[%clk 0:02:05]}  Kxd8 {[%clk 0:02:47]} 21. Ke3 {[%clk 0:02:02]}  Be6 {[%clk 0:02:48]} 22. a3 {[%clk 0:01:58]}  Kc7 {[%clk 0:02:48]} 23. Nd2 {[%clk 0:01:56]}  Kd6 {[%clk 0:02:49]} 24. c4 {[%clk 0:01:52]}  a5 {[%clk 0:02:49]} 25. b4 {[%clk 0:01:49]}  axb4 {[%clk 0:02:48]} 26. axb4 {[%clk 0:01:50]}  g6 {[%clk 0:02:47]} 27. f4 {[%clk 0:01:19]}  Bc8 {[%clk 0:02:39]} 28. Ne4+ {[%clk 0:01:15]}  Ke7 {[%clk 0:02:39]} 29. fxe5 {[%clk 0:01:15]}  fxe5 {[%clk 0:02:40]} 30. Nc5 {[%clk 0:01:13]}  Kd6 {[%clk 0:02:39]} 31. g3 {[%clk 0:01:12]}  Bg4 {[%clk 0:02:36]} 32. h4 {[%clk 0:01:09]}  h6 {[%clk 0:02:34]} 33. Nd3 {[%clk 0:01:06]}  Bf5 {[%clk 0:02:32]} 34. Nf2 {[%clk 0:01:05]}  Ke6 {[%clk 0:02:32]} 35. Ne4 {[%clk 0:01:05]}  Bg4 {[%clk 0:02:32]} 36. Nc3 {[%clk 0:00:57]}  Bh3 {[%clk 0:02:29]} 37. b5 {[%clk 0:00:47]}  cxb5 {[%clk 0:02:30]} 38. cxb5 {[%clk 0:00:48]}  Kd6 {[%clk 0:02:29]} 39. b6 {[%clk 0:00:48]}  Kc6 {[%clk 0:02:29]} 40. Ke4 {[%clk 0:00:47]}  Kxb6 {[%clk 0:02:27]} 41. Kxe5 {[%clk 0:00:47]}  g5 {[%clk 0:02:27]} 42. h5 {[%clk 0:00:39]}  Bg4 {[%clk 0:02:27]} 43. Nd5+ {[%clk 0:00:39]}  Kb5 {[%clk 0:02:27]} 44. Nf6 {[%clk 0:00:40]}  Kc5 {[%clk 0:02:22]} 45. Nxg4 {[%clk 0:00:40]} 1-0


[Site "https://www.chess.com"]

[Event "Titled Tuesday Blitz August 15 Late 2023"]
[White "Vifleemskaia, Svetlana"]
[Black "olackza"]
[WhiteFideId "4129490"]
[WhiteElo "2350"]
[BlackElo "2199"]
[Result "1-0"]
[Round "9"]
[TimeControl "180+1"]
[Date "2023.08.15"]
[WhiteClock "0:00:06"]
[BlackClock "0:00:00"]
[Board "104"]

1. d4 {[%clk 0:03:00]}  d5 {[%clk 0:03:00]} 2. c4 {[%clk 0:03:00]}  e6 {[%clk 0:03:00]} 3. Nc3 {[%clk 0:03:00]}  Nf6 {[%clk 0:03:00]} 4. cxd5 {[%clk 0:02:59]}  exd5 {[%clk 0:03:00]} 5. Bg5 {[%clk 0:02:59]}  Be7 {[%clk 0:03:00]} 6. e3 {[%clk 0:02:59]}  h6 {[%clk 0:03:00]} 7. Bh4 {[%clk 0:02:58]}  O-O {[%clk 0:03:00]} 8. Bd3 {[%clk 0:02:57]}  b6 {[%clk 0:02:56]} 9. Nf3 {[%clk 0:02:53]}  Bb7 {[%clk 0:02:57]} 10. O-O {[%clk 0:02:51]}  Nbd7 {[%clk 0:02:43]} 11. Rc1 {[%clk 0:02:46]}  Rc8 {[%clk 0:02:39]} 12. Nb5 {[%clk 0:02:38]}  a6 {[%clk 0:02:33]} 13. Nc3 {[%clk 0:02:37]}  Ne4 {[%clk 0:02:22]} 14. Bxe7 {[%clk 0:02:29]}  Qxe7 {[%clk 0:02:23]} 15. Qc2 {[%clk 0:02:27]}  Ndf6 {[%clk 0:02:17]} 16. Ne5 {[%clk 0:02:24]}  c5 {[%clk 0:02:01]} 17. dxc5 {[%clk 0:02:00]}  Qxe5 {[%clk 0:01:57]} 18. cxb6 {[%clk 0:02:00]}  Nxc3 {[%clk 0:01:23]} 19. bxc3 {[%clk 0:01:59]}  Rc6 {[%clk 0:01:09]} 20. Qb3 {[%clk 0:01:46]}  Rfc8 {[%clk 0:01:04]} 21. c4 {[%clk 0:01:25]}  dxc4 {[%clk 0:01:02]} 22. Rxc4 {[%clk 0:01:20]}  Rxc4 {[%clk 0:00:56]} 23. Bxc4 {[%clk 0:01:19]}  Ng4 {[%clk 0:00:20]} 24. Bxf7+ {[%clk 0:01:11]}  Kh8 {[%clk 0:00:20]} 25. g3 {[%clk 0:00:40]}  Qe4 {[%clk 0:00:16]} 26. f3 {[%clk 0:00:39]}  Qxe3+ {[%clk 0:00:17]} 27. Qxe3 {[%clk 0:00:38]}  Nxe3 {[%clk 0:00:18]} 28. Re1 {[%clk 0:00:36]}  Nf5 {[%clk 0:00:10]} 29. Be6 {[%clk 0:00:32]}  Rf8 {[%clk 0:00:09]} 30. f4 {[%clk 0:00:25]}  Rf6 {[%clk 0:00:03]} 31. Bxf5 {[%clk 0:00:24]}  Rxf5 {[%clk 0:00:03]} 32. Re7 {[%clk 0:00:22]}  Bc6 {[%clk 0:00:03]} 33. a4 {[%clk 0:00:21]}  Ra5 {[%clk 0:00:02]} 34. b7 {[%clk 0:00:20]}  Bxb7 {[%clk 0:00:02]} 35. Rxb7 {[%clk 0:00:19]}  Rxa4 {[%clk 0:00:03]} 36. Kg2 {[%clk 0:00:19]}  Ra3 {[%clk 0:00:03]} 37. Kh3 {[%clk 0:00:19]}  Kh7 {[%clk 0:00:04]} 38. Kg4 {[%clk 0:00:19]}  a5 {[%clk 0:00:04]} 39. h4 {[%clk 0:00:18]}  Ra2 {[%clk 0:00:05]} 40. h5 {[%clk 0:00:19]}  Ra3 {[%clk 0:00:05]} 41. Ra7 {[%clk 0:00:19]}  Kg8 {[%clk 0:00:05]} 42. Kf5 {[%clk 0:00:17]}  Rxg3 {[%clk 0:00:04]} 43. Rxa5 {[%clk 0:00:16]}  Rh3 {[%clk 0:00:03]} 44. Kg4 {[%clk 0:00:15]}  Rh1 {[%clk 0:00:03]} 45. Ra7 {[%clk 0:00:14]}  Kh7 {[%clk 0:00:04]} 46. Rb7 {[%clk 0:00:12]}  Rg1+ {[%clk 0:00:04]} 47. Kf5 {[%clk 0:00:11]}  Rf1 {[%clk 0:00:04]} 48. Kg4 {[%clk 0:00:09]}  Rf2 {[%clk 0:00:04]} 49. f5 {[%clk 0:00:08]}  Rg2+ {[%clk 0:00:04]} 50. Kf3 {[%clk 0:00:07]}  Rg5 {[%clk 0:00:04]} 51. Kf4 {[%clk 0:00:06]}  Rxh5 {[%clk 0:00:05]} 52. f6 {[%clk 0:00:07]}  Rg5 {[%clk 0:00:04]} 53. f7 {[%clk 0:00:06]}  Rg6 {[%clk 0:00:00]} 54. f8=Q {[%clk 0:00:06]} 1-0


[Site "https://www.chess.com"]

[Event "Titled Tuesday Blitz August 15 Late 2023"]
[White "Beulen, Marcel"]
[Black "Florianovitz, Derlei Alex"]
[WhiteFideId "1001450"]
[BlackFideId "2114178"]
[WhiteElo "2323"]
[BlackElo "2170"]
[Result "1-0"]
[Round "9"]
[TimeControl "180+1"]
[Date "2023.08.15"]
[WhiteClock "0:00:27"]
[BlackClock "0:00:04"]
[Board "105"]

1. e4 {[%clk 0:03:00]}  e6 {[%clk 0:02:57]} 2. d4 {[%clk 0:03:00]}  d5 {[%clk 0:02:58]} 3. exd5 {[%clk 0:03:00]}  exd5 {[%clk 0:02:57]} 4. Nf3 {[%clk 0:03:01]}  Bd6 {[%clk 0:02:56]} 5. c4 {[%clk 0:03:01]}  Bg4 {[%clk 0:02:56]} 6. h3 {[%clk 0:02:55]}  Bh5 {[%clk 0:02:54]} 7. Nc3 {[%clk 0:02:50]}  Qe7+ {[%clk 0:02:50]} 8. Be3 {[%clk 0:02:49]}  Nf6 {[%clk 0:02:45]} 9. Be2 {[%clk 0:02:25]}  c6 {[%clk 0:02:32]} 10. O-O {[%clk 0:02:18]}  h6 {[%clk 0:02:28]} 11. Re1 {[%clk 0:02:18]}  Bb4 {[%clk 0:02:21]} 12. Qb3 {[%clk 0:02:13]}  Bxc3 {[%clk 0:02:20]} 13. bxc3 {[%clk 0:02:12]}  O-O {[%clk 0:02:16]} 14. Bf4 {[%clk 0:02:11]}  Bxf3 {[%clk 0:02:10]} 15. Bxf3 {[%clk 0:02:10]}  Qd7 {[%clk 0:02:10]} 16. Rab1 {[%clk 0:02:07]}  b6 {[%clk 0:02:02]} 17. cxd5 {[%clk 0:01:45]}  Nxd5 {[%clk 0:02:01]} 18. Bg3 {[%clk 0:01:43]}  Na6 {[%clk 0:01:52]} 19. c4 {[%clk 0:01:41]}  Nf6 {[%clk 0:01:47]} 20. Qa4 {[%clk 0:01:38]}  Nc7 {[%clk 0:01:05]} 21. Bxc6 {[%clk 0:01:35]}  Qd8 {[%clk 0:01:05]} 22. Bxa8 {[%clk 0:01:27]}  Nxa8 {[%clk 0:01:06]} 23. c5 {[%clk 0:01:20]}  Nd5 {[%clk 0:00:58]} 24. Bd6 {[%clk 0:01:19]}  b5 {[%clk 0:00:55]} 25. Qxa7 {[%clk 0:01:10]}  Re8 {[%clk 0:00:53]} 26. Qb7 {[%clk 0:01:02]}  Nc3 {[%clk 0:00:45]} 27. Rxe8+ {[%clk 0:00:58]}  Qxe8 {[%clk 0:00:45]} 28. Rf1 {[%clk 0:00:57]}  Ne2+ {[%clk 0:00:42]} 29. Kh1 {[%clk 0:00:56]}  Nxd4 {[%clk 0:00:43]} 30. Qd5 {[%clk 0:00:51]}  Nc6 {[%clk 0:00:20]} 31. Qd3 {[%clk 0:00:47]}  b4 {[%clk 0:00:19]} 32. Qd2 {[%clk 0:00:44]}  Qd7 {[%clk 0:00:19]} 33. Qe3 {[%clk 0:00:40]}  Nc7 {[%clk 0:00:19]} 34. Bxc7 {[%clk 0:00:33]}  Qxc7 {[%clk 0:00:20]} 35. Rd1 {[%clk 0:00:32]}  Kh7 {[%clk 0:00:18]} 36. Qe4+ {[%clk 0:00:32]}  g6 {[%clk 0:00:18]} 37. Qd5 {[%clk 0:00:29]}  Ne5 {[%clk 0:00:17]} 38. Qd6 {[%clk 0:00:28]}  Qc6 {[%clk 0:00:05]} 39. Qxc6 {[%clk 0:00:28]}  Nxc6 {[%clk 0:00:04]} 40. Rd6 {[%clk 0:00:28]}  Nd4 {[%clk 0:00:04]} 41. c6 {[%clk 0:00:27]} 1-0


[Site "https://www.chess.com"]

[Event "Titled Tuesday Blitz August 15 Late 2023"]
[White "Hartikainen, Jarmo"]
[Black "Vaglio Munoz, Jaime"]
[WhiteFideId "503134"]
[BlackFideId "6500145"]
[WhiteElo "2114"]
[BlackElo "2238"]
[Result "0-1"]
[Round "9"]
[TimeControl "180+1"]
[Date "2023.08.15"]
[WhiteClock "0:00:00"]
[BlackClock "0:00:24"]
[Board "110"]

1. e4 {[%clk 0:03:00]}  c5 {[%clk 0:02:47]} 2. c3 {[%clk 0:03:00]}  Qa5 {[%clk 0:02:46]} 3. Nf3 {[%clk 0:02:56]}  Nc6 {[%clk 0:02:46]} 4. Be2 {[%clk 0:02:53]}  Nf6 {[%clk 0:02:45]} 5. d3 {[%clk 0:02:45]}  d5 {[%clk 0:02:44]} 6. Nbd2 {[%clk 0:02:40]}  e6 {[%clk 0:02:40]} 7. O-O {[%clk 0:02:38]}  Be7 {[%clk 0:02:39]} 8. Re1 {[%clk 0:02:20]}  O-O {[%clk 0:02:38]} 9. Bf1 {[%clk 0:02:17]}  dxe4 {[%clk 0:02:32]} 10. dxe4 {[%clk 0:02:15]}  Rd8 {[%clk 0:02:32]} 11. Qc2 {[%clk 0:02:13]}  h6 {[%clk 0:02:23]} 12. a4 {[%clk 0:01:57]}  Qc7 {[%clk 0:02:20]} 13. Nc4 {[%clk 0:01:51]}  b6 {[%clk 0:02:18]} 14. g3 {[%clk 0:01:14]}  Bb7 {[%clk 0:02:17]} 15. Bf4 {[%clk 0:01:14]}  Qc8 {[%clk 0:01:58]} 16. Nfe5 {[%clk 0:01:10]}  Nxe5 {[%clk 0:01:56]} 17. Nxe5 {[%clk 0:01:00]}  Bd6 {[%clk 0:01:53]} 18. Bg2 {[%clk 0:00:53]}  Qc7 {[%clk 0:01:53]} 19. Nd3 {[%clk 0:00:51]}  e5 {[%clk 0:01:52]} 20. Bd2 {[%clk 0:00:39]}  Ba6 {[%clk 0:01:49]} 21. Rad1 {[%clk 0:00:37]}  Bc8 {[%clk 0:01:37]} 22. f4 {[%clk 0:00:34]}  Bg4 {[%clk 0:01:35]} 23. Rc1 {[%clk 0:00:32]}  c4 {[%clk 0:01:33]} 24. Nxe5 {[%clk 0:00:31]}  Bxe5 {[%clk 0:01:32]} 25. fxe5 {[%clk 0:00:31]}  Qxe5 {[%clk 0:01:29]} 26. Bf4 {[%clk 0:00:31]}  Qc5+ {[%clk 0:01:29]} 27. Be3 {[%clk 0:00:30]}  Qc7 {[%clk 0:01:24]} 28. h3 {[%clk 0:00:30]}  Be6 {[%clk 0:01:23]} 29. Qf2 {[%clk 0:00:28]}  Rac8 {[%clk 0:01:20]} 30. Rcd1 {[%clk 0:00:27]}  Rxd1 {[%clk 0:01:19]} 31. Rxd1 {[%clk 0:00:27]}  Rd8 {[%clk 0:01:19]} 32. Rxd8+ {[%clk 0:00:27]}  Qxd8 {[%clk 0:01:20]} 33. Bd4 {[%clk 0:00:27]}  Nd7 {[%clk 0:01:18]} 34. g4 {[%clk 0:00:24]}  f6 {[%clk 0:01:18]} 35. Qf4 {[%clk 0:00:23]}  Qb8 {[%clk 0:01:13]} 36. Qxb8+ {[%clk 0:00:22]}  Nxb8 {[%clk 0:01:13]} 37. a5 {[%clk 0:00:22]}  bxa5 {[%clk 0:01:07]} 38. Bxa7 {[%clk 0:00:21]}  Nc6 {[%clk 0:01:07]} 39. Bb6 {[%clk 0:00:21]}  a4 {[%clk 0:01:07]} 40. Bf3 {[%clk 0:00:20]}  Ne5 {[%clk 0:01:07]} 41. Bd1 {[%clk 0:00:19]}  Bd7 {[%clk 0:01:07]} 42. Bc2 {[%clk 0:00:14]}  Bc6 {[%clk 0:01:07]} 43. Kf2 {[%clk 0:00:13]}  Kf7 {[%clk 0:01:07]} 44. Ke3 {[%clk 0:00:13]}  Ke6 {[%clk 0:01:07]} 45. Bd1 {[%clk 0:00:11]}  Kd6 {[%clk 0:01:07]} 46. Bd4 {[%clk 0:00:10]}  Nd7 {[%clk 0:01:06]} 47. Be2 {[%clk 0:00:09]}  Bb5 {[%clk 0:01:05]} 48. Ba7 {[%clk 0:00:08]}  g5 {[%clk 0:01:04]} 49. Kd4 {[%clk 0:00:08]}  Ne5 {[%clk 0:01:03]} 50. Bb8+ {[%clk 0:00:07]}  Ke6 {[%clk 0:01:03]} 51. Bxe5 {[%clk 0:00:07]}  fxe5+ {[%clk 0:01:00]} 52. Kc5 {[%clk 0:00:07]}  Bd7 {[%clk 0:00:51]} 53. Bxc4+ {[%clk 0:00:07]}  Kf6 {[%clk 0:00:50]} 54. Bb5 {[%clk 0:00:07]}  Be6 {[%clk 0:00:46]} 55. Bxa4 {[%clk 0:00:07]}  h5 {[%clk 0:00:45]} 56. Bd1 {[%clk 0:00:05]}  h4 {[%clk 0:00:42]} 57. b4 {[%clk 0:00:05]}  Ke7 {[%clk 0:00:42]} 58. b5 {[%clk 0:00:05]}  Kd7 {[%clk 0:00:42]} 59. b6 {[%clk 0:00:05]}  Kc8 {[%clk 0:00:39]} 60. Ba4 {[%clk 0:00:03]}  Kb7 {[%clk 0:00:25]} 61. Bc6+ {[%clk 0:00:01]}  Kb8 {[%clk 0:00:24]} 62. Kd6 {[%clk 0:00:00]}  Bxg4 {[%clk 0:00:24]} 0-1


[Site "https://www.chess.com"]

[Event "Titled Tuesday Blitz August 15 Late 2023"]
[White "Petersson, Kjell"]
[Black "Romero Ruscalleda, Josep"]
[WhiteFideId "1705148"]
[BlackFideId "2231859"]
[WhiteElo "2171"]
[BlackElo "2394"]
[Result "0-1"]
[Round "9"]
[TimeControl "180+1"]
[Date "2023.08.15"]
[WhiteClock "0:00:01"]
[BlackClock "0:00:46"]
[Board "111"]

1. d4 {[%clk 0:03:00]}  g6 {[%clk 0:03:00]} 2. e4 {[%clk 0:02:59]}  Bg7 {[%clk 0:03:01]} 3. Nf3 {[%clk 0:02:57]}  d6 {[%clk 0:03:01]} 4. Nc3 {[%clk 0:02:55]}  a6 {[%clk 0:03:01]} 5. Be3 {[%clk 0:02:53]}  b5 {[%clk 0:03:00]} 6. Qd2 {[%clk 0:02:50]}  Bb7 {[%clk 0:02:58]} 7. Bd3 {[%clk 0:02:47]}  Nf6 {[%clk 0:02:57]} 8. a3 {[%clk 0:02:33]}  Ng4 {[%clk 0:02:41]} 9. Bg5 {[%clk 0:02:27]}  h6 {[%clk 0:02:36]} 10. Bh4 {[%clk 0:02:27]}  Nd7 {[%clk 0:02:35]} 11. h3 {[%clk 0:02:25]}  Ngf6 {[%clk 0:02:35]} 12. O-O-O {[%clk 0:02:20]}  O-O {[%clk 0:02:33]} 13. g4 {[%clk 0:02:12]}  c5 {[%clk 0:02:25]} 14. g5 {[%clk 0:02:09]}  hxg5 {[%clk 0:02:23]} 15. Bxg5 {[%clk 0:01:54]}  b4 {[%clk 0:02:19]} 16. axb4 {[%clk 0:01:42]}  cxb4 {[%clk 0:02:19]} 17. Na2 {[%clk 0:01:36]}  Bxe4 {[%clk 0:02:19]} 18. Bxe4 {[%clk 0:01:13]}  Nxe4 {[%clk 0:02:18]} 19. Qe3 {[%clk 0:01:02]}  Nxg5 {[%clk 0:02:13]} 20. Qxg5 {[%clk 0:01:02]}  a5 {[%clk 0:01:49]} 21. h4 {[%clk 0:01:02]}  e6 {[%clk 0:01:47]} 22. Qe3 {[%clk 0:00:54]}  Nf6 {[%clk 0:01:43]} 23. h5 {[%clk 0:00:47]}  Nxh5 {[%clk 0:01:42]} 24. Rxh5 {[%clk 0:00:45]}  gxh5 {[%clk 0:01:42]} 25. Rg1 {[%clk 0:00:46]}  Qf6 {[%clk 0:01:39]} 26. Kb1 {[%clk 0:00:37]}  Rfc8 {[%clk 0:01:34]} 27. Qe2 {[%clk 0:00:26]}  Kf8 {[%clk 0:01:29]} 28. Rh1 {[%clk 0:00:24]}  Rab8 {[%clk 0:01:14]} 29. Nc1 {[%clk 0:00:23]}  a4 {[%clk 0:01:09]} 30. Rxh5 {[%clk 0:00:23]}  b3 {[%clk 0:01:09]} 31. cxb3 {[%clk 0:00:21]}  Qg6+ {[%clk 0:01:08]} 32. Nd3 {[%clk 0:00:16]}  Qxh5 {[%clk 0:01:08]} 33. bxa4 {[%clk 0:00:12]}  Rb3 {[%clk 0:00:58]} 34. Qd1 {[%clk 0:00:08]}  Rcb8 {[%clk 0:00:54]} 35. a5 {[%clk 0:00:07]}  Bxd4 {[%clk 0:00:51]} 36. Ka1 {[%clk 0:00:04]}  Qxa5+ {[%clk 0:00:46]} 37. Kb1 {[%clk 0:00:03]}  Rxb2+ {[%clk 0:00:46]} 38. Nxb2 {[%clk 0:00:01]}  Rxb2+ {[%clk 0:00:46]} 0-1


[Site "https://www.chess.com"]

[Event "Titled Tuesday Blitz August 15 Late 2023"]
[White "KSho99"]
[Black "cthake"]
[WhiteElo "2195"]
[BlackElo "1834"]
[Result "1-0"]
[Round "9"]
[TimeControl "180+1"]
[Date "2023.08.15"]
[WhiteClock "0:01:03"]
[BlackClock "0:00:37"]
[Board "113"]

1. Nf3 {[%clk 0:03:00]}  e6 {[%clk 0:02:54]} 2. b3 {[%clk 0:02:56]}  f5 {[%clk 0:02:53]} 3. Bb2 {[%clk 0:02:56]}  Nf6 {[%clk 0:02:53]} 4. e3 {[%clk 0:02:56]}  Be7 {[%clk 0:02:53]} 5. c4 {[%clk 0:02:55]}  O-O {[%clk 0:02:52]} 6. Nc3 {[%clk 0:02:55]}  d6 {[%clk 0:02:52]} 7. Be2 {[%clk 0:02:55]}  Qe8 {[%clk 0:02:47]} 8. O-O {[%clk 0:02:52]}  b6 {[%clk 0:02:44]} 9. d4 {[%clk 0:02:48]}  Bb7 {[%clk 0:02:41]} 10. Ne1 {[%clk 0:02:48]}  Nbd7 {[%clk 0:02:34]} 11. Bf3 {[%clk 0:02:48]}  Ne4 {[%clk 0:02:31]} 12. g3 {[%clk 0:02:43]}  Ndf6 {[%clk 0:02:21]} 13. Bg2 {[%clk 0:02:42]}  g5 {[%clk 0:02:16]} 14. Ne2 {[%clk 0:02:37]}  Qg6 {[%clk 0:02:15]} 15. f3 {[%clk 0:02:34]}  d5 {[%clk 0:01:56]} 16. fxe4 {[%clk 0:02:33]}  dxe4 {[%clk 0:01:54]} 17. Nc3 {[%clk 0:02:21]}  Ng4 {[%clk 0:01:54]} 18. Qd2 {[%clk 0:02:13]}  f4 {[%clk 0:01:42]} 19. exf4 {[%clk 0:01:51]}  e3 {[%clk 0:01:41]} 20. Qe2 {[%clk 0:01:50]}  Bxg2 {[%clk 0:01:37]} 21. Nxg2 {[%clk 0:01:45]}  Qh5 {[%clk 0:01:29]} 22. Nxe3 {[%clk 0:01:36]}  Nf6 {[%clk 0:00:58]} 23. Qxh5 {[%clk 0:01:35]}  Nxh5 {[%clk 0:00:59]} 24. fxg5 {[%clk 0:01:29]}  Bxg5 {[%clk 0:00:59]} 25. Ng4 {[%clk 0:01:27]}  Rfd8 {[%clk 0:00:57]} 26. Ne4 {[%clk 0:01:20]}  Be7 {[%clk 0:00:53]} 27. Rad1 {[%clk 0:01:16]}  Ng7 {[%clk 0:00:49]} 28. Ngf6+ {[%clk 0:01:11]}  Bxf6 {[%clk 0:00:47]} 29. Nxf6+ {[%clk 0:01:11]}  Kh8 {[%clk 0:00:46]} 30. d5 {[%clk 0:01:05]}  exd5 {[%clk 0:00:44]} 31. Nh5 {[%clk 0:01:05]}  Rg8 {[%clk 0:00:37]} 32. Rf7 {[%clk 0:01:03]} 1-0


[Site "https://www.chess.com"]

[Event "Titled Tuesday Blitz August 15 Late 2023"]
[White "Vargas, Mauricio"]
[Black "Burke, Paul"]
[WhiteFideId "4404572"]
[BlackFideId "2605767"]
[WhiteElo "1877"]
[BlackElo "1836"]
[Result "0-1"]
[Round "9"]
[TimeControl "180+1"]
[Date "2023.08.15"]
[WhiteClock "0:00:00"]
[BlackClock "0:01:27"]
[Board "115"]

1. e4 {[%clk 0:02:27]}  e5 {[%clk 0:02:57]} 2. Nf3 {[%clk 0:02:25]}  Nc6 {[%clk 0:02:57]} 3. d4 {[%clk 0:02:25]}  exd4 {[%clk 0:02:56]} 4. Bc4 {[%clk 0:02:25]}  Be7 {[%clk 0:02:56]} 5. c3 {[%clk 0:02:23]}  d6 {[%clk 0:02:53]} 6. cxd4 {[%clk 0:02:19]}  Nf6 {[%clk 0:02:52]} 7. Nc3 {[%clk 0:02:18]}  O-O {[%clk 0:02:51]} 8. O-O {[%clk 0:02:15]}  Bg4 {[%clk 0:02:50]} 9. Be3 {[%clk 0:01:59]}  Nxe4 {[%clk 0:02:48]} 10. Nxe4 {[%clk 0:01:56]}  d5 {[%clk 0:02:48]} 11. Bxd5 {[%clk 0:01:45]}  Qxd5 {[%clk 0:02:47]} 12. Ned2 {[%clk 0:01:43]}  f5 {[%clk 0:02:19]} 13. h3 {[%clk 0:01:44]}  Bh5 {[%clk 0:02:19]} 14. Rc1 {[%clk 0:01:29]}  f4 {[%clk 0:02:17]} 15. Rc5 {[%clk 0:01:18]}  Bxc5 {[%clk 0:02:15]} 16. dxc5 {[%clk 0:01:13]}  fxe3 {[%clk 0:02:13]} 17. fxe3 {[%clk 0:01:11]}  Bxf3 {[%clk 0:02:02]} 18. Nxf3 {[%clk 0:01:05]}  Qxd1 {[%clk 0:01:56]} 19. Rxd1 {[%clk 0:01:06]}  Rad8 {[%clk 0:01:56]} 20. Re1 {[%clk 0:01:05]}  Rfe8 {[%clk 0:01:51]} 21. e4 {[%clk 0:01:04]}  Nd4 {[%clk 0:01:50]} 22. e5 {[%clk 0:01:02]}  Nxf3+ {[%clk 0:01:49]} 23. gxf3 {[%clk 0:01:03]}  Rd5 {[%clk 0:01:48]} 24. f4 {[%clk 0:01:02]}  Rxc5 {[%clk 0:01:47]} 25. Re2 {[%clk 0:00:58]}  g6 {[%clk 0:01:46]} 26. Kg2 {[%clk 0:00:54]}  Kf7 {[%clk 0:01:46]} 27. a3 {[%clk 0:00:51]}  Ke6 {[%clk 0:01:44]} 28. Kf3 {[%clk 0:00:50]}  Kf5 {[%clk 0:01:40]} 29. Re3 {[%clk 0:00:48]}  Rc4 {[%clk 0:01:38]} 30. Rc3 {[%clk 0:00:27]}  Rxc3+ {[%clk 0:01:33]} 31. bxc3 {[%clk 0:00:25]}  Rd8 {[%clk 0:01:32]} 32. Ke3 {[%clk 0:00:24]}  Rd1 {[%clk 0:01:32]} 33. c4 {[%clk 0:00:22]}  Rf1 {[%clk 0:01:28]} 34. e6 {[%clk 0:00:14]}  Re1+ {[%clk 0:01:27]} 35. Kf3 {[%clk 0:00:00]}  Rxe6 {[%clk 0:01:27]} 0-1


[Site "https://www.chess.com"]

[Event "Titled Tuesday Blitz August 15 Late 2023"]
[White "Duda, Jan-Krzysztof"]
[Black "Vachier-Lagrave, Maxime"]
[WhiteFideId "1170546"]
[BlackFideId "623539"]
[WhiteElo "3093"]
[BlackElo "3125"]
[Result "0-1"]
[Round "10"]
[TimeControl "180+1"]
[Date "2023.08.15"]
[WhiteClock "0:00:00"]
[BlackClock "0:00:14"]
[Board "1"]

1. Nf3 {[%clk 0:03:00]}  c5 {[%clk 0:02:55]} 2. g3 {[%clk 0:03:00]}  g6 {[%clk 0:02:55]} 3. Bg2 {[%clk 0:03:00]}  Bg7 {[%clk 0:02:56]} 4. c4 {[%clk 0:03:01]}  Nc6 {[%clk 0:02:56]} 5. O-O {[%clk 0:03:00]}  d6 {[%clk 0:02:56]} 6. Nc3 {[%clk 0:03:00]}  e5 {[%clk 0:02:54]} 7. Ne1 {[%clk 0:02:53]}  Be6 {[%clk 0:02:52]} 8. d3 {[%clk 0:02:52]}  Nge7 {[%clk 0:02:51]} 9. Nd5 {[%clk 0:02:50]}  O-O {[%clk 0:02:46]} 10. Nc2 {[%clk 0:02:49]}  Qd7 {[%clk 0:02:46]} 11. Rb1 {[%clk 0:02:48]}  Bh3 {[%clk 0:02:42]} 12. e4 {[%clk 0:02:36]}  Bxg2 {[%clk 0:02:39]} 13. Kxg2 {[%clk 0:02:36]}  f5 {[%clk 0:02:39]} 14. b4 {[%clk 0:02:27]}  f4 {[%clk 0:02:06]} 15. f3 {[%clk 0:02:27]}  g5 {[%clk 0:02:07]} 16. bxc5 {[%clk 0:02:13]}  dxc5 {[%clk 0:02:08]} 17. Bb2 {[%clk 0:02:13]}  Ng6 {[%clk 0:02:05]} 18. g4 {[%clk 0:02:01]}  h5 {[%clk 0:02:02]} 19. h3 {[%clk 0:02:01]}  Kf7 {[%clk 0:02:02]} 20. Bc3 {[%clk 0:01:44]}  Rh8 {[%clk 0:02:01]} 21. Rg1 {[%clk 0:01:06]}  Rh7 {[%clk 0:01:49]} 22. Rb5 {[%clk 0:01:03]}  hxg4 {[%clk 0:01:39]} 23. hxg4 {[%clk 0:01:03]}  Rah8 {[%clk 0:01:39]} 24. Kf1 {[%clk 0:00:50]}  Bf8 {[%clk 0:01:28]} 25. Ne1 {[%clk 0:00:47]}  Rh2 {[%clk 0:01:23]} 26. Rb2 {[%clk 0:00:46]}  R2h3 {[%clk 0:01:12]} 27. Qb1 {[%clk 0:00:45]}  Nd8 {[%clk 0:01:09]} 28. Rf2 {[%clk 0:00:35]}  Bd6 {[%clk 0:01:07]} 29. Ke2 {[%clk 0:00:34]}  Ne6 {[%clk 0:01:07]} 30. Kd2 {[%clk 0:00:33]}  Nd4 {[%clk 0:01:06]} 31. Rgf1 {[%clk 0:00:29]}  Rg3 {[%clk 0:00:57]} 32. Bxd4 {[%clk 0:00:13]}  exd4 {[%clk 0:00:58]} 33. Ke2 {[%clk 0:00:13]}  Ne5 {[%clk 0:00:57]} 34. Qb3 {[%clk 0:00:11]}  Qc6 {[%clk 0:00:44]} 35. a4 {[%clk 0:00:11]}  Bc7 {[%clk 0:00:44]} 36. Nxc7 {[%clk 0:00:06]}  Qxc7 {[%clk 0:00:44]} 37. Qb5 {[%clk 0:00:06]}  a6 {[%clk 0:00:40]} 38. Qb3 {[%clk 0:00:06]}  Rh6 {[%clk 0:00:40]} 39. Kd1 {[%clk 0:00:04]}  Rb6 {[%clk 0:00:40]} 40. Qa2 {[%clk 0:00:04]}  Rh3 {[%clk 0:00:37]} 41. Rh2 {[%clk 0:00:02]}  Rb1+ {[%clk 0:00:37]} 42. Qxb1 {[%clk 0:00:02]}  Rxh2 {[%clk 0:00:38]} 43. Qb3 {[%clk 0:00:02]}  Qa5 {[%clk 0:00:29]} 44. Kc1 {[%clk 0:00:02]}  Qd2+ {[%clk 0:00:28]} 45. Kb1 {[%clk 0:00:02]}  b6 {[%clk 0:00:25]} 46. a5 {[%clk 0:00:02]}  Qxa5 {[%clk 0:00:20]} 47. Nc2 {[%clk 0:00:03]}  Qd2 {[%clk 0:00:20]} 48. Rc1 {[%clk 0:00:01]}  Nxd3 {[%clk 0:00:20]} 49. Rg1 {[%clk 0:00:01]}  Ne5 {[%clk 0:00:15]} 50. Rc1 {[%clk 0:00:02]}  d3 {[%clk 0:00:14]} 51. Qxb6 {[%clk 0:00:02]}  dxc2+ {[%clk 0:00:14]} 52. Ka2 {[%clk 0:00:00]}  Qd7 {[%clk 0:00:14]} 0-1


[Site "https://www.chess.com"]